bitfinex/quotes_SOLUSD_20260220
["timestamp","ask_amount","ask_price","bid_price","bid_amount"]
[1771611884213,11.50294419,84.63,84.591,4.42812664]
[1771611884408,4.2377511,84.629,84.59,41.37604917]
[1771611885309,4.2377511,84.629,84.591,4.42812664]
[1771611885897,4.2377511,84.629,84.59,11.82172833]
[1771611886094,4.2377511,84.629,84.56,47.3032569]
[1771611886095,4.2377511,84.619,84.583,4.42812664]
[1771611887922,11.50294419,84.62,84.583,4.42812664]
[1771611888215,11.50294419,84.64,84.59,4.42812664]
[1771611888599,11.81418647,84.644,84.59,4.42812664]
[1771611888600,11.50294419,84.63,84.59,4.42812664]
[1771611889005,15.74069529,84.62,84.578,4.42812664]
[1771611889318,11.50294419,84.62,84.579,4.42812664]
[1771611889514,15.74069529,84.63,84.579,4.42812664]
[1771611890003,4.2377511,84.629,84.579,4.42812664]
[1771611890312,4.2377511,84.619,84.581,4.42812664]
[1771611891497,11.81781654,84.618,84.582,11.82284646]
[1771611892020,4.2377511,84.599,84.56,4.42812664]
[1771611892637,11.50908449,84.58,84.556,11.82648185]
[1771611892916,4.2377511,84.589,84.556,11.82648185]
[1771611893502,11.82200784,84.588,84.549,11.82746099]
[1771611893710,11.82200784,84.588,84.549,16.25558763]
[1771611894131,16.05975894,84.588,84.549,11.82746099]
[1771611894424,11.82151088,84.592,84.55,4.42812664]
[1771611894625,11.82047069,84.599,84.55,4.42812664]
[1771611894800,11.50908449,84.6,84.55,4.42812664]
[1771611895000,4.2377511,84.608,84.557,0.28432314]
[1771611895224,11.81907362,84.609,84.558,4.42812664]
[1771611895618,11.81907362,84.609,84.56,4.42812664]
[1771611896125,23.32811224,84.61,84.56,4.42812664]
[1771611897123,4.2377511,84.599,84.56,4.42812664]
[1771611897912,11.82061041,84.598,84.561,16.25390921]
[1771611898324,4.2377511,84.599,84.562,4.42812664]
[1771611899029,16.05822625,84.599,84.562,4.42812664]
[1771611900311,4.2377511,84.598,84.563,11.82550287]
[1771611900505,4.2377511,84.598,84.564,4.42812664]
[1771611900728,47.24212469,84.671,84.564,4.42812664]
[1771611900729,11.50908449,84.61,84.564,4.42812664]
[1771611901025,11.81907362,84.609,84.564,4.42812664]
[1771611901326,4.2377511,84.599,84.563,11.82550287]
[1771611901503,15.74683559,84.59,84.563,11.82550287]
[1771611902123,4.2377511,84.579,84.542,4.42812664]
[1771611902429,11.82340561,84.578,84.544,11.82804185]
[1771611902733,11.50908449,84.57,84.544,11.82804185]
[1771611903110,4.2377511,84.569,84.532,11.82983958]
[1771611903308,4.2377511,84.569,84.532,41.40443854]
[1771611904110,11.50908449,84.56,84.532,11.82983958]
[1771611904312,4.2377511,84.569,84.523,34.0057617]
[1771611904313,11.50908449,84.55,84.523,34.0057617]
[1771611904503,11.50908449,84.55,84.524,4.42812664]
[1771611904702,3.69383402,84.59,84.524,4.42812664]
[1771611904703,11.50908449,84.57,84.524,4.42812664]
[1771611906423,59.10111784,84.601,84.51,0.14216157]
[1771611906424,11.50908449,84.58,84.528,4.40550156]
[1771611906731,4.31605817,84.598,84.531,0.28432314]
[1771611907036,11.82075014,84.597,84.548,4.40550156]
[1771611907410,11.50908449,84.59,84.548,4.40550156]
[1771611907705,11.50908449,84.58,84.548,4.40550156]
[1771611908136,4.43558878,84.589,84.548,4.40550156]
[1771611909114,4.43558878,84.587,84.55,4.25201322]
[1771611911337,11.50908449,84.56,84.537,4.25201322]
[1771611911536,165.7,84.608,84.539,4.25201322]
[1771611911843,165.7,84.608,84.538,0.14216157]
[1771611911844,4.43558878,84.599,84.545,4.25201322]
[1771611912010,4.43558878,84.599,84.549,4.25201322]
[1771611912414,11.819353,84.607,84.559,4.25201322]
[1771611912613,11.50908449,84.61,84.559,4.25201322]
[1771611912834,11.50908449,84.61,84.542,3.69383402]
[1771611912835,27.76233694,84.62,84.569,4.25201322]
[1771611913212,23.32674816,84.62,84.57,41.38583421]
[1771611913409,23.32674816,84.62,84.571,4.25201322]
[1771611913631,23.32674816,84.62,84.57,41.38583421]
[1771611913632,15.94467327,84.63,84.579,4.25201322]
[1771611913838,27.76082732,84.63,84.579,4.25201322]
[1771611914419,4.43558878,84.629,84.579,4.25201322]
[1771611914941,11.50908449,84.62,84.579,4.25201322]
[1771611915136,4.43558878,84.619,84.579,4.25201322]
[1771611915337,11.50908449,84.62,84.581,4.25201322]
[1771611915644,15.94467327,84.63,84.581,4.25201322]
[1771611915823,11.81664896,84.627,84.581,4.25201322]
[1771611916219,15.94467327,84.63,84.581,4.25201322]
[1771611916440,11.81334908,84.65,84.586,4.53633636]
[1771611916753,23.32243357,84.65,84.599,4.25201322]
[1771611917040,27.75802235,84.65,84.599,4.25201322]
[1771611917635,11.50908449,84.64,84.601,4.25201322]
[1771611917816,4.43558878,84.629,84.595,11.82090994]
[1771611918018,4.43558878,84.629,84.596,4.25201322]
[1771611918320,4.43558878,84.629,84.595,11.82090994]
[1771611918321,11.50908449,84.62,84.595,11.82090994]
[1771611918926,4.43558878,84.619,84.587,11.82214761]
[1771611919325,4.43558878,84.619,84.587,16.07416083]
[1771611919937,11.81781654,84.618,84.587,16.07416083]
[1771611920252,11.81781654,84.618,84.588,4.25201322]
[1771611920754,23.32672293,84.62,84.588,4.25201322]
[1771611921054,29.53821965,84.637,84.588,4.25201322]
[1771611921055,11.50908449,84.63,84.588,4.25201322]
[1771611921343,4.43558878,84.649,84.59,4.25201322]
[1771611921526,11.50908449,84.65,84.601,0.14216157]
[1771611921731,4.43558878,84.649,84.608,4.25201322]
[1771611921942,4.43558878,84.649,84.599,4.25201322]
[1771611921943,11.50908449,84.64,84.599,4.25201322]
[1771611922641,4.43558878,84.648,84.599,4.25201322]
[1771611922851,4.43558878,84.639,84.599,4.25201322]
[1771611923024,11.50908449,84.63,84.599,4.25201322]
[1771611923224,4.43558878,84.639,84.599,4.25201322]
[1771611924249,11.8143447,84.643,84.601,4.25201322]
[1771611924447,11.81376112,84.648,84.601,4.25201322]
[1771611925138,11.50908449,84.64,84.601,4.25201322]
[1771611925748,16.24805793,84.657,84.601,4.25201322]
[1771611925949,11.50908449,84.65,84.601,4.25201322]
[1771611926320,11.50908449,84.66,84.608,0.28432314]
[1771611926520,11.81209322,84.659,84.609,4.25201322]
[1771611927745,11.50908449,84.65,84.609,4.25201322]
[1771611928553,11.50908449,84.65,84.611,4.25201322]
[1771611929850,11.50908449,84.65,84.61,41.36626876]
[1771611929851,4.43558878,84.639,84.61,11.81893393]
[1771611930154,4.43558878,84.648,84.611,4.25201322]
[1771611930632,4.43558878,84.648,84.59,11.74372705]
[1771611930633,4.43558878,84.648,84.613,4.25201322]
[1771611930833,16.24934996,84.648,84.613,4.25201322]
[1771611931537,4.43558878,84.647,84.613,4.25201322]
[1771611932043,11.50908449,84.64,84.613,4.25201322]
[1771611932250,4.43558878,84.647,84.613,4.25201322]
[1771611932624,4.43558878,84.638,84.604,11.81977211]
[1771611932825,11.50908449,84.63,84.604,11.81977211]
[1771611933045,4.43558878,84.629,84.594,11.82116935]
[1771611933844,4.43558878,84.629,84.594,41.37409272]
[1771611934050,4.43558878,84.629,84.595,4.25201322]
[1771611935948,4.43558878,84.599,84.566,11.82508336]
[1771611936145,4.43558878,84.599,84.567,4.25201322]
[1771611937047,15.94467327,84.61,84.567,4.25201322]
[1771611937347,4.20741517,84.609,84.567,4.25201322]
[1771611937551,11.50908449,84.61,84.566,11.82508336]
[1771611937552,11.50908449,84.61,84.569,4.28467401]
[1771611937753,4.20741517,84.608,84.57,16.10919807]
[1771611937947,11.50908449,84.6,84.57,16.10919807]
[1771611938339,11.50908449,84.6,84.57,4.28467401]
[1771611938543,4.20741517,84.589,84.566,11.82500865]
[1771611939054,4.20741517,84.589,84.554,16.1114356]
[1771611939759,11.82340561,84.578,84.545,11.82802058]
[1771611939935,4.20741517,84.579,84.545,41.39807203]
[1771611940249,11.50908449,84.57,84.545,11.82802058]
[1771611941253,4.20741517,84.577,84.545,11.82802058]
[1771611941441,4.20741517,84.577,84.545,16.11269459]
[1771611941650,4.20741517,84.577,84.546,4.28467401]
[1771611942037,11.82193077,84.589,84.548,4.28467401]
[1771611942557,4.20741517,84.601,84.548,4.28467401]
[1771611942558,11.82101045,84.596,84.548,4.28467401]
[1771611942739,23.32941689,84.6,84.548,4.28467401]
[1771611942934,27.53683206,84.6,84.548,4.28467401]
[1771611945056,11.50908449,84.58,84.55,4.28467401]
[1771611945640,4.20741517,84.579,84.55,4.28467401]
[1771611946042,41.37115982,84.6,84.532,11.82983958]
[1771611946043,11.50908449,84.56,84.532,11.82983958]
[1771611947350,11.50908449,84.57,84.533,4.28467401]
[1771611947666,11.50908449,84.56,84.533,4.28467401]
[1771611948037,4.20741517,84.559,84.521,4.28467401]
[1771611948240,11.50908449,84.55,84.521,4.28467401]
[1771611948865,11.50908449,84.53,84.511,11.83277916]
[1771611949053,11.50908449,84.53,84.499,11.83445957]
[1771611949547,11.50908449,84.53,84.499,45.70528252]
[1771611949746,11.50908449,84.53,84.5,4.28467401]
[1771611950258,11.82903743,84.538,84.5,4.28467401]
[1771611950561,11.50908449,84.54,84.5,4.28467401]
[1771611951462,29.56498556,84.56,84.485,4.28467401]
[1771611951463,4.20741517,84.519,84.485,4.28467401]
[1771611951665,11.50908449,84.52,84.48,0.2]
[1771611951666,11.50908449,84.54,84.491,4.28467401]
[1771611951961,11.82886005,84.539,84.491,4.28467401]
[1771611952363,4.20741517,84.538,84.491,4.28467401]
[1771611953766,11.53298789,84.53,84.493,4.28467401]
[1771611955263,4.20741517,84.536,84.493,4.28467401]
[1771611956071,4.20741517,84.536,84.495,4.28467401]
[1771611956248,11.53298789,84.55,84.499,4.28467401]
[1771611956452,11.53298789,84.56,84.509,4.28467401]
[1771611956652,15.74040306,84.56,84.509,4.28467401]
[1771611957053,4.20741517,84.559,84.509,4.28467401]
[1771611957548,16.03347744,84.559,84.511,4.28467401]
[1771611957752,11.82466388,84.569,84.519,4.28467401]
[1771611957948,3.69383402,84.59,84.512,0.14216157]
[1771611957949,4.20741517,84.578,84.523,4.28467401]
[1771611958152,4.20741517,84.578,84.529,4.28467401]
[1771611958772,23.35624338,84.58,84.529,4.28467401]
[1771611959275,11.82265975,84.584,84.529,4.28467401]
[1771611959859,11.53298789,84.59,84.539,4.28467401]
[1771611960075,4.20741517,84.569,84.53,41.40541819]
[1771611960455,4.20741517,84.579,84.531,4.28467401]
[1771611961663,16.02955933,84.588,84.539,4.28467401]
[1771611961871,4.20741517,84.588,84.539,4.28467401]
[1771611962180,11.53298789,84.58,84.539,4.28467401]
[1771611962973,4.20741517,84.579,84.539,4.28467401]
[1771611963578,4.20741517,84.589,84.541,4.28467401]
[1771611963761,11.82200784,84.588,84.541,4.28467401]
[1771611963960,4.20741517,84.587,84.541,4.28467401]
[1771611965282,4.20741517,84.607,84.549,4.28467401]
[1771611965580,4.20741517,84.605,84.561,4.28467401]
[1771611965783,11.53298789,84.6,84.561,4.28467401]
[1771611966166,4.20741517,84.603,84.561,4.28467401]
[1771611966484,11.81928749,84.608,84.561,4.28467401]
[1771611966683,4.22200129,84.622,84.57,0.28432314]
[1771611966981,4.22200129,84.622,84.579,4.15029771]
[1771611967280,4.11640893,84.678,84.585,5.36086188]
[1771611967490,4.11640893,84.649,84.589,0.14216157]
[1771611967675,4.11640893,84.629,84.592,4.39303869]
[1771611968767,11.81488439,84.639,84.592,4.39303869]
[1771611969181,4.11640893,84.638,84.592,4.39303869]
[1771611969559,4.11640893,84.638,84.593,41.37458181]
[1771611969762,4.11640893,84.638,84.594,4.39303869]
[1771611970081,15.93157251,84.637,84.594,4.39303869]
[1771611971486,4.11640893,84.629,84.595,11.82102961]
[1771611972677,4.11640893,84.638,84.596,4.39303869]
[1771611972877,4.11640893,84.629,84.596,4.39303869]
[1771611973687,11.81642009,84.628,84.597,11.82075014]
[1771611974291,23.34781366,84.64,84.598,4.39303869]
[1771611974491,11.81482577,84.64,84.598,4.39303869]
[1771611974877,4.11640893,84.639,84.598,4.39303869]
[1771611975189,4.11640893,84.619,84.587,11.82214761]
[1771611975988,4.11640893,84.619,84.587,4.39303869]
[1771611976772,4.11640893,84.609,84.573,4.39303869]
[1771611977298,15.93422547,84.618,84.573,4.39303869]
[1771611977497,11.53298789,84.61,84.573,4.39303869]
[1771611977695,4.11640893,84.609,84.573,4.39303869]
[1771611977997,4.11640893,84.599,84.564,4.39303869]
[1771611978170,4.11640893,84.599,84.565,11.8252232]
[1771611978575,4.11640893,84.599,84.566,4.39303869]
[1771611978888,4.11640893,84.599,84.565,11.8252232]
[1771611979487,11.53298789,84.59,84.565,11.8252232]
[1771611979701,11.53298789,84.59,84.56,11.82580242]
[1771611980001,11.82200784,84.588,84.548,11.82760088]
[1771611980301,11.53298789,84.59,84.549,4.39303869]
[1771611980589,11.82186809,84.589,84.549,4.39303869]
[1771611980794,11.82047069,84.599,84.549,4.39303869]
[1771611981172,11.53298789,84.61,84.555,4.39303869]
[1771611981473,11.8179562,84.617,84.559,4.39303869]
[1771611982081,11.8179562,84.617,84.569,4.39303869]
[1771611982594,15.64939682,84.63,84.579,4.39303869]
[1771611982972,4.11640893,84.63,84.579,4.39303869]
[1771611983169,4.11640893,84.638,84.579,4.39303869]
[1771611983369,4.11640893,84.619,84.579,4.39303869]
[1771611983594,4.11640893,84.609,84.579,4.39303869]
[1771611984477,4.11640893,84.609,84.58,11.82312603]
[1771611984798,4.11640893,84.608,84.58,11.82312603]
[1771611986501,11.819353,84.607,84.577,4.39303869]
[1771611986711,4.11640893,84.606,84.569,4.39303869]
[1771611987597,11.53298789,84.61,84.569,4.39303869]
[1771611987796,4.11640893,84.611,84.569,4.39303869]
[1771611988098,4.11640893,84.629,84.579,4.39303869]
[1771611988476,11.81680349,84.626,84.58,41.38094111]
[1771611988683,11.81680349,84.626,84.581,4.39303869]
[1771611989002,11.53298789,84.62,84.581,4.39303869]
[1771611989402,4.11640893,84.625,84.583,4.39303869]
[1771611990702,15.93331276,84.625,84.585,4.39303869]
[1771611991298,11.53298789,84.62,84.585,4.39303869]
[1771611992382,4.11640893,84.619,84.585,4.39303869]
[1771611992690,4.11640893,84.609,84.586,11.82228737]
[1771611993594,4.11640893,84.605,84.582,2.1]
[1771611994004,11.53298789,84.61,84.583,4.39303869]
[1771611994502,4.11640893,84.609,84.582,2.1]
[1771611995301,11.81921331,84.608,84.579,4.39303869]
[1771611996004,4.11640893,84.628,84.579,4.39303869]
[1771611996805,11.81683523,84.626,84.579,4.39303869]
[1771611997193,16.17072631,84.626,84.579,4.39303869]
[1771611997394,4.29808109,84.62,84.581,4.22713532]
[1771611998396,4.35389108,84.609,84.567,2.1]
[1771611998706,4.35389108,84.579,84.527,4.22713532]
[1771611998911,4.29808109,84.57,84.527,4.22713532]
[1771611999283,4.29808109,84.55,84.514,4.22713532]
[1771611999483,4.29808109,84.56,84.514,4.22713532]
[1771611999684,4.35389108,84.568,84.516,4.22713532]
[1771611999879,4.29808109,84.56,84.526,4.22713532]
[1771612000110,4.29808109,84.56,84.528,4.22713532]
[1771612000409,8.65197217,84.57,84.53,4.22713532]
[1771612001593,4.29808109,84.57,84.53,4.22713532]
[1771612001797,4.35389108,84.559,84.529,11.83025943]
[1771612002607,0.14216157,84.588,84.529,4.22713532]
[1771612002608,4.35389108,84.568,84.529,4.22713532]
[1771612002986,11.52847522,84.56,84.529,4.22713532]
[1771612003604,11.52847522,84.57,84.529,4.22713532]
[1771612003990,4.35389108,84.569,84.529,4.22713532]
[1771612004607,11.82606227,84.559,84.53,11.83011948]
[1771612004904,11.82474521,84.569,84.531,4.22713532]
[1771612005102,11.52847522,84.57,84.531,4.22713532]
[1771612005498,4.35389108,84.569,84.531,4.22713532]
[1771612005704,16.17855496,84.569,84.531,4.22713532]
[1771612005914,15.8823663,84.56,84.531,4.22713532]
[1771612006209,15.8823663,84.56,84.51,0.14216157]
[1771612006210,4.35389108,84.549,84.512,16.05964235]
[1771612006418,4.35389108,84.549,84.513,4.22713532]
[1771612006602,4.35389108,84.547,84.513,4.22713532]
[1771612006801,11.82760088,84.548,84.492,4.22713532]
[1771612006802,4.35389108,84.529,84.492,4.22713532]
[1771612007007,4.35389108,84.519,84.485,11.83635872]
[1771612007317,11.52847522,84.5,84.489,0.82859274]
[1771612008307,4.35389108,84.509,84.489,0.82859274]
[1771612008516,11.52847522,84.5,84.489,0.82859274]
[1771612009490,11.52847522,84.5,84.489,1e-08]
[1771612009491,4.31035216,84.498,84.489,1e-08]
[1771612010918,11.83473969,84.497,84.489,1e-08]
[1771612011314,4.31035216,84.498,84.489,1e-08]
[1771612011616,11.52847522,84.51,84.489,1e-08]
[1771612011994,4.31035216,84.509,84.489,1e-08]
[1771612012195,11.83166997,84.519,84.49,4.22713532]
[1771612012596,16.14061159,84.529,84.492,4.22713532]
[1771612014394,16.14061159,84.529,84.489,1e-08]
[1771612014395,15.85236735,84.51,84.489,1e-08]
[1771612014594,11.54201519,84.51,84.489,1e-08]
[1771612016517,11.8330592,84.509,84.489,1e-08]
[1771612016901,11.54201519,84.52,84.489,4.22713533]
[1771612017106,11.54201519,84.53,84.489,4.22713533]
[1771612017807,15.85236735,84.53,84.489,4.22713533]
[1771612018721,15.85236735,84.53,84.491,4.22713532]
[1771612018923,27.68119803,84.54,84.491,4.22713532]
[1771612019520,23.37084587,84.54,84.491,4.22713532]
[1771612020522,11.54201519,84.52,84.491,4.22713532]
[1771612020716,11.54201519,84.53,84.493,4.22713532]
[1771612021024,11.54201519,84.54,84.493,4.22713532]
[1771612021603,4.31035216,84.539,84.493,4.22713532]
[1771612022323,11.54201519,84.53,84.493,4.22713532]
[1771612022521,4.31035216,84.539,84.493,4.22713532]
[1771612023829,11.54201519,84.53,84.495,4.22713532]
[1771612024827,11.54201519,84.53,84.495,6.32713532]
[1771612025032,11.54201519,84.52,84.495,2.1]
[1771612025228,4.31035216,84.509,84.489,1e-08]
[1771612025404,11.54201519,84.5,84.489,1e-08]
[1771612025831,11.83319922,84.508,84.489,1e-08]
[1771612026635,11.54201519,84.5,84.489,1e-08]
[1771612026814,16.14355138,84.508,84.489,1e-08]
[1771612027019,11.54201519,84.51,84.489,1e-08]
[1771612027505,16.14221074,84.518,84.489,1e-08]
[1771612028328,4.31035216,84.517,84.489,1e-08]
[1771612028715,11.54201519,84.51,84.489,1e-08]
[1771612031429,4.31035216,84.499,84.457,4.38986447]
[1771612031629,4.31035216,84.489,84.471,11.8383824]
[1771612031935,4.31035216,84.497,84.471,11.8383824]
[1771612032520,11.8330592,84.509,84.472,4.38986447]
[1771612032934,11.54201519,84.51,84.472,4.38986447]
[1771612033124,11.83204051,84.517,84.474,4.38986447]
[1771612033434,11.54201519,84.51,84.474,4.38986447]
[1771612034126,4.31035216,84.516,84.474,4.38986447]
[1771612034635,11.54201519,84.52,84.474,4.38986447]
[1771612034935,0.14216157,84.538,84.473,41.43335739]
[1771612034936,11.54201519,84.54,84.49,4.38986447]
[1771612035135,104.4,84.579,84.489,41.425511]
[1771612035136,11.82572273,84.562,84.508,4.38986447]
[1771612035429,4.31035216,84.559,84.508,4.38986447]
[1771612035636,4.31035216,84.549,84.508,4.38986447]
[1771612035837,4.31035216,84.539,84.499,4.38986447]
[1771612036046,4.31035216,84.549,84.499,4.38986447]
[1771612036328,4.31035216,84.557,84.499,4.38986447]
[1771612036809,4.31035216,84.557,84.506,0.28432314]
[1771612037015,11.82606227,84.559,84.511,4.38986447]
[1771612037221,4.31035216,84.558,84.511,4.38986447]
[1771612037518,4.31035216,84.558,84.506,11.83343231]
[1771612037519,4.31035216,84.539,84.506,11.83343231]
[1771612037831,11.54201519,84.53,84.506,11.83343231]
[1771612038131,4.31035216,84.539,84.506,11.83343231]
[1771612038515,4.31035216,84.539,84.507,4.38986447]
[1771612039112,11.82899997,84.538,84.508,11.83319922]
[1771612039315,11.82899997,84.538,84.509,4.38986447]
[1771612040934,4.31035216,84.537,84.509,4.38986447]
[1771612042217,4.31035216,84.537,84.508,11.83319922]
[1771612042218,11.82886005,84.539,84.511,4.38986447]
[1771612042553,4.31035216,84.538,84.511,4.38986447]
[1771612043317,11.82606227,84.559,84.511,4.38986447]
[1771612043944,4.31035216,84.558,84.511,4.38986447]
[1771612044434,4.31035216,84.558,84.513,4.38986447]
[1771612044632,11.82634199,84.557,84.513,4.38986447]
[1771612044831,4.31035216,84.559,84.513,4.38986447]
[1771612046420,4.31035216,84.559,84.493,0.4]
[1771612046421,11.52838459,84.54,84.514,11.83235913]
[1771612046621,4.31035216,84.539,84.509,4.38986447]
[1771612048736,23.35711924,84.54,84.511,4.38986447]
[1771612048936,11.52838459,84.55,84.511,4.38986447]
[1771612049232,11.82746099,84.549,84.511,4.38986447]
[1771612050833,11.52838459,84.55,84.512,41.41423702]
[1771612051034,11.52838459,84.56,84.513,4.38986447]
[1771612051228,11.82606227,84.559,84.515,4.38986447]
[1771612052441,11.52838459,84.55,84.514,0.4]
[1771612052632,11.52838459,84.55,84.459,47.35980929]
[1771612052633,11.52838459,84.54,84.472,4.38986447]
[1771612052836,11.52838459,84.54,84.476,5.36086188]
[1771612053026,11.52838459,84.52,84.479,4.38986447]
[1771612053226,11.82886005,84.539,84.479,4.38986447]
[1771612053227,11.52838459,84.53,84.479,4.38986447]
[1771612053543,0.14216157,84.555,84.489,4.38986447]
[1771612053723,11.52838459,84.54,84.489,4.38986447]
[1771612054055,4.31035216,84.519,84.475,4.38986447]
[1771612054258,4.31035216,84.529,84.475,4.38986447]
[1771612054417,4.31035216,84.509,84.474,11.83796197]
[1771612054624,11.52838459,84.49,84.47,0.2]
[1771612054845,4.31035216,84.477,84.45,1e-08]
[1771612055046,3.69383402,84.457,84.377,4.49999999]
[1771612055221,11.52838459,84.42,84.405,4.49999999]
[1771612055431,11.52838459,84.42,84.36,11.99298844]
[1771612055637,11.52838459,84.42,84.363,3.69383402]
[1771612055943,11.52838459,84.41,84.33,6.19098529]
[1771612056131,11.52838459,84.41,84.373,29.63025858]
[1771612056322,11.52838459,84.41,84.363,3.69383402]
[1771612056520,11.52838459,84.4,84.326,47.43484375]
[1771612056722,11.52838459,84.4,84.322,47.4370126]
[1771612056723,11.52838459,84.4,84.327,59.29299037]
[1771612056925,11.84609552,84.416,84.327,3.69383402]
[1771612057139,11.52838459,84.4,84.327,3.69383402]
[1771612057347,11.84531842,84.422,84.335,3.69383402]
[1771612057527,11.52838459,84.41,84.357,4.37439393]
[1771612057835,11.52838459,84.41,84.358,0.42648471]
[1771612058023,11.52838459,84.41,84.359,4.37439393]
[1771612058221,11.52838459,84.41,84.362,0.14216157]
[1771612058541,11.52838459,84.41,84.347,5.36086188]
[1771612058542,11.52838459,84.4,84.369,4.37439393]
[1771612059048,11.52838459,84.4,84.368,0.14216157]
[1771612059049,11.52838459,84.41,84.371,4.37439393]
[1771612059231,11.52838459,84.42,84.375,4.37439393]
[1771612059433,11.52838459,84.43,84.385,4.37439393]
[1771612059736,4.0768863,84.409,84.371,4.37439393]
[1771612059936,11.52838459,84.42,84.371,4.37439393]
[1771612060124,11.52838459,84.41,84.379,4.37439393]
[1771612060724,4.0768863,84.435,84.379,4.37439393]
[1771612060725,11.52838459,84.42,84.379,4.37439393]
[1771612060925,11.52838459,84.43,84.389,4.37439393]
[1771612061737,11.52838459,84.44,84.395,4.37439393]
[1771612061970,11.52838459,84.44,84.399,4.37439393]
[1771612062126,11.52838459,84.42,84.389,4.37439393]
[1771612062732,11.52838459,84.43,84.389,4.37439393]
[1771612063043,11.52838459,84.44,84.399,4.37439393]
[1771612063252,11.52838459,84.45,84.399,4.37439393]
[1771612063548,4.0768863,84.46,84.419,4.37439393]
[1771612063549,11.52838459,84.46,84.419,4.37439393]
[1771612064337,11.52838459,84.47,84.419,4.37439393]
[1771612064536,11.52838459,84.47,84.429,4.37439393]
[1771612065142,11.52838459,84.47,84.431,4.37439393]
[1771612065342,11.52838459,84.45,84.43,11.84413123]
[1771612066450,11.52838459,84.44,84.41,4.37439393]
[1771612067234,11.52838459,84.43,84.411,11.84679721]
[1771612067442,11.52838459,84.44,84.411,11.84679721]
[1771612068047,23.36971081,84.45,84.412,4.37439393]
[1771612068357,11.52838459,84.44,84.412,4.37439393]
[1771612068933,11.52838459,84.48,84.423,0.28432314]
[1771612069141,11.52838459,84.47,84.428,4.37439393]
[1771612069346,11.52838459,84.47,84.43,4.37439393]
[1771612069742,11.52838459,84.48,84.434,4.37439393]
[1771612069956,11.52838459,84.48,84.438,4.37439393]
[1771612070732,29.58568839,84.501,84.438,4.37439393]
[1771612070733,11.83586028,84.489,84.438,4.37439393]
[1771612071357,11.83586028,84.489,84.44,4.37439393]
[1771612072154,4.0768863,84.499,84.441,0.14216157]
[1771612072461,11.54587411,84.5,84.448,4.37439393]
[1771612073738,11.83445957,84.499,84.449,41.44513255]
[1771612074060,11.54587411,84.52,84.462,4.37439393]
[1771612074235,4.0768863,84.529,84.477,4.37439393]
[1771612074436,4.0768863,84.529,84.481,4.37439393]
[1771612074641,11.54587411,84.54,84.489,4.37439393]
[1771612074943,11.54587411,84.54,84.468,9.0546959]
[1771612074944,11.54587411,84.54,84.499,4.37439393]
[1771612075140,11.54587411,84.53,84.499,4.37439393]
[1771612075358,11.54587411,84.51,84.483,4.37439393]
[1771612075670,11.54587411,84.54,84.488,4.37439393]
[1771612075843,11.54587411,84.52,84.489,11.83586028]
[1771612076541,11.54587411,84.51,84.479,11.83726133]
[1771612076839,11.54587411,84.51,84.46,0.14216157]
[1771612076840,11.54587411,84.5,84.474,11.83793175]
[1771612077039,11.54587411,84.5,84.468,4.37439393]
[1771612077451,11.54587411,84.51,84.468,4.37439393]
[1771612078051,11.54587411,84.51,84.47,4.37439393]
[1771612078739,4.0768863,84.499,84.469,11.8386627]
[1771612079162,106.46509163,84.535,84.469,11.8386627]
[1771612079163,11.54587411,84.51,84.47,4.37439393]
[1771612079364,11.54587411,84.51,84.469,41.43531946]
[1771612079365,11.54587411,84.53,84.478,4.37439393]
[1771612079942,11.54587411,84.53,84.479,41.43041465]
[1771612079943,11.83025943,84.529,84.479,41.43041465]
[1771612080146,4.0768863,84.519,84.471,4.37439393]
[1771612080346,4.0768863,84.499,84.458,4.37439393]
[1771612081169,4.0768863,84.507,84.458,4.37439393]
[1771612081469,11.54587411,84.52,84.478,4.37439393]
[1771612081760,4.0768863,84.519,84.478,4.37439393]
[1771612082144,47.30765727,84.553,84.47,0.14216157]
[1771612082145,11.54587411,84.54,84.487,0.28432314]
[1771612082345,4.0768863,84.549,84.498,4.37439393]
[1771612082552,15.62276041,84.54,84.498,4.37439393]
[1771612082748,11.54587411,84.54,84.498,4.37439393]
[1771612082960,27.45014016,84.55,84.498,4.37439393]
[1771612083655,11.54587411,84.54,84.498,4.37439393]
[1771612084977,11.54587411,84.54,84.5,4.37439393]
[1771612085672,11.82760088,84.548,84.5,4.37439393]
[1771612085673,11.54587411,84.53,84.5,4.37439393]
[1771612085870,15.62276041,84.53,84.499,41.42060851]
[1771612086259,11.54587411,84.53,84.5,4.37439393]
[1771612086567,11.82760088,84.548,84.5,4.37439393]
[1771612086958,4.356,84.547,84.503,4.51846836]
[1771612087160,11.54587411,84.55,84.508,4.23414522]
[1771612088957,11.54587411,84.55,84.504,0.14216157]
[1771612088958,11.82746099,84.549,84.51,4.08495647]
[1771612089167,15.97698215,84.549,84.51,4.08495647]
[1771612089359,4.14952116,84.549,84.51,4.08495647]
[1771612090865,4.14952116,84.549,84.509,11.8330592]
[1771612090866,4.14952116,84.539,84.509,11.8330592]
[1771612091188,4.14952116,84.539,84.507,29.58308585]
[1771612091767,4.14952116,84.539,84.507,33.66804232]
[1771612091996,11.54587411,84.54,84.508,4.08495647]
[1771612092366,23.37327221,84.55,84.508,4.08495647]